bitfinex-derivatives/quotes_ETHF0:USTF0_20250213
["timestamp","ask_amount","ask_price","bid_price","bid_amount"]
[1739456220593,5.10484,2635.3,2634.4,7.7401491]
[1739456220787,0.75904,2634.5,2634.4,5.80486]
[1739456221400,3.2078,2635.1,2634.4,5.80486]
[1739456221589,3.2078,2635.1,2634.4,10.1991491]
[1739456221891,3.2078,2635.1,2635.0,0.7589]
[1739456222085,5.10449,2635.8,2635.2,0.75882]
[1739456222286,3.2078,2635.8,2635.0,3.2078]
[1739456222482,3.2078,2635.8,2635.2,4.3942891]
[1739456222691,3.2078,2636.5,2635.9,0.75864]
[1739456222885,3.2078,2636.9,2635.9,3.2078]
[1739456223089,3.2078,2636.9,2636.2,3.2078]
[1739456223289,3.2078,2636.9,2636.4,4.3942891]
[1739456223497,3.2078,2637.4,2636.6,3.2078]
[1739456223797,3.2078,2637.1,2636.5,3.2078]
[1739456224187,3.97179839,2637.1,2636.5,3.97193839]
[1739456224695,3.21348839,2637.1,2636.5,3.21348839]
[1739456224896,0.00568839,2637.1,2636.8,4.3942891]
[1739456225093,0.00568839,2637.1,2636.9,2.28]
[1739456225498,0.75844,2636.6,2636.5,0.00568839]
[1739456225691,3.96624,2636.6,2636.5,0.00568839]
[1739456225897,3.2078,2636.6,2636.5,0.00568839]
[1739456226093,3.96624,2636.6,2636.5,0.00568839]
[1739456226401,0.00568839,2637.1,2636.5,0.00568839]
[1739456226593,0.75839,2636.8,2636.5,0.00568839]
[1739456226893,0.00568839,2637.1,2636.7,3.96619]
[1739456227093,0.00568839,2637.1,2636.7,3.2078]
[1739456227286,0.00568839,2637.1,2636.7,2.278]
[1739456227492,0.75832,2637.0,2636.7,2.278]
[1739456227692,0.00568839,2637.1,2636.7,2.278]
[1739456228200,0.76399839,2637.1,2636.7,2.278]
[1739456228386,0.75837,2636.9,2636.7,2.278]
[1739456228591,0.00568839,2637.1,2636.7,2.278]
[1739456229093,0.76398839,2637.1,2636.7,2.278]
[1739456229298,0.00568839,2637.1,2636.7,2.278]
[1739456229796,0.00568839,2637.1,2636.7,3.0364]
[1739456229995,0.00568839,2637.1,2636.8,7.6020891]
[1739456230190,0.00568839,2637.1,2637.0,0.75832]
[1739456230496,0.75823,2637.4,2636.9,0.75835]
[1739456230696,3.2078,2637.7,2637.1,3.2078]
[1739456230897,3.96592,2637.7,2637.2,0.75824]
[1739456231094,3.96592,2637.7,2637.1,3.2078]
[1739456231095,3.2078,2637.7,2637.1,3.2078]
[1739456231294,3.2078,2637.7,2637.2,9.2032891]
[1739456231495,3.2078,2638.0,2637.3,3.02223]
[1739456231691,3.2078,2638.0,2637.3,2.264]
[1739456231893,3.48995816,2638.0,2637.4,3.2078]
[1739456232295,3.48995816,2638.0,2637.6,0.75813]
[1739456232593,0.75817,2637.6,2637.4,3.2078]
[1739456232799,3.2078,2637.7,2637.3,8.0688]
[1739456232996,3.48995816,2638.0,2637.3,5.8048]
[1739456233194,3.2078,2637.7,2637.4,2.257]
[1739456233399,0.75816,2637.6,2637.4,2.257]
[1739456233599,0.7581,2637.8,2637.4,2.257]
[1739456233799,0.75809,2637.9,2637.4,3.01519]
[1739456233999,3.49539364,2638.0,2637.5,3.2078]
[1739456234201,3.49539364,2638.0,2637.4,2.257]
[1739456234396,0.75812,2637.8,2637.4,3.0152]
[1739456234596,3.49539364,2638.0,2637.4,2.257]
[1739456234804,0.28759364,2638.0,2637.5,2.255]
[1739456235002,0.75809,2637.8,2637.5,2.255]
[1739456235301,3.2078,2637.8,2637.3,5.8048]
[1739456235702,0.75814,2637.7,2637.3,6.56302]
[1739456235898,0.75814,2637.7,2637.3,6.56303]
[1739456236206,0.75811,2637.8,2637.4,0.75819]
[1739456236398,0.75818,2637.5,2637.3,5.8048]
[1739456236600,0.75815,2637.6,2637.3,6.56302]
[1739456236801,0.75813,2637.7,2637.4,0.75819]
[1739456237102,3.2078,2637.8,2637.3,5.8048]
[1739456237297,0.29058062,2638.0,2637.3,5.8048]
[1739456237504,0.75805,2638.0,2637.6,0.75813]
[1739456237695,1.04648622,2638.0,2637.6,0.75815]
[1739456238205,0.28843622,2638.0,2637.5,3.2078]
[1739456238406,3.2078,2638.1,2637.5,3.2078]
[1739456239103,3.2078,2638.1,2637.6,4.3942891]
[1739456239307,3.2078,2638.4,2637.8,3.2078]
[1739456239511,0.28474785,2638.4,2638.0,4.3942891]
[1739456239699,3.2078,2638.7,2638.0,4.3942891]
[1739456240000,3.2078,2638.7,2638.2,3.2078]
[1739456240192,0.75787,2638.6,2638.3,2.234]
[1739456240396,3.2078,2638.7,2638.3,2.234]
[1739456240704,0.75792,2638.4,2638.3,2.234]
[1739456241013,1.04669933,2638.4,2638.3,2.234]
[1739456241195,3.2078,2638.7,2638.2,8.1671]
[1739456241397,0.75795,2638.3,2638.2,8.1671]
[1739456241796,0.75795,2638.3,2638.2,5.9361]
[1739456241996,3.2078,2638.4,2638.1,4.6384]
[1739456242201,0.75806,2637.9,2637.8,2.23168839]
[1739456242408,5.39555658,2638.4,2637.8,2.23168839]
[1739456242605,0.75802,2638.1,2637.8,2.23168839]
[1739456242806,0.75802,2638.1,2637.8,2.98977839]
[1739456243009,3.50069658,2638.4,2637.8,2.23168839]
[1739456243301,0.75806,2637.9,2637.8,0.00568839]
[1739456244104,3.2078,2638.0,2637.6,19.81240781]
[1739456244310,0.75826,2637.2,2637.1,2.223]
[1739456244903,3.96605,2637.3,2637.1,2.223]
[1739456245112,0.75825,2637.3,2637.1,2.223]
[1739456245307,0.75826,2637.2,2637.1,2.223]
[1739456245508,0.75832,2637.0,2636.9,5.73348839]
[1739456245705,0.75832,2637.0,2636.9,0.00568839]
[1739456245906,3.2078,2637.4,2636.9,0.00568839]
[1739456246112,3.2078,2637.7,2637.0,3.2078]
[1739456246303,3.2078,2637.7,2637.1,2.22]
[1739456246508,3.2078,2637.7,2637.3,3.2078]
[1739456246712,3.2078,2637.7,2637.5,0.75816]
[1739456247004,3.2078,2637.7,2637.3,3.96603]
[1739456247206,0.00568,2638.1,2637.9,0.75805]
[1739456247398,0.00568,2638.1,2637.8,2.221]
[1739456247604,0.00568,2638.1,2638.0,5.1523191]
[1739456247908,0.00568,2638.1,2638.0,45.9523191]
[1739456248108,0.28539232,2638.4,2638.3,0.75795]
[1739456248407,0.7579,2638.5,2638.3,2.22]
[1739456248612,0.75787,2638.6,2638.3,2.22]
[1739456248909,0.75789,2638.5,2638.3,2.22]
[1739456249113,3.2078,2638.8,2638.0,68.2570891]
[1739456249313,10.1637,2639.3,2638.0,68.2570891]
[1739456249314,3.2078,2638.5,2638.1,0.00568839]
[1739456249509,3.9658,2638.2,2638.1,0.00568839]
[1739456249814,3.2078,2638.2,2637.0,22.071]
[1739456250005,5.10312,2637.7,2636.9,2.217]
[1739456250311,3.2078,2637.4,2636.9,2.217]
[1739456250513,0.75835,2636.9,2636.8,19.853]
[1739456251009,3.79049,2637.8,2636.8,19.853]
[1739456251010,3.21348839,2638.4,2636.8,30.2472891]
[1739456251208,0.00568839,2638.4,2637.8,7.6020891]
[1739456251411,0.75806,2637.9,2637.8,4.3942891]
[1739456251616,0.00568839,2638.4,2637.8,7.6020891]
[1739456251913,3.2078,2639.0,2638.2,4.3942891]
[1739456252109,3.2078,2639.0,2638.4,3.2078]
[1739456252314,0.75787,2638.6,2638.3,2.234]
[1739456252515,0.7579,2638.5,2638.3,2.234]
[1739456252915,0.75798,2638.2,2638.1,19.854]
[1739456253119,0.75798,2638.2,2638.1,19.85968839]
[1739456254612,10.5106,2638.3,2637.0,7.6020891]
[1739456254817,3.2078,2637.5,2637.2,2.229]
[1739456255008,0.75822,2637.4,2637.2,2.98725]
[1739456255205,0.75822,2637.4,2637.2,2.229]
[1739456255410,0.75822,2637.4,2637.2,2.98726]
[1739456255618,3.2078,2637.9,2637.0,6.6192891]
[1739456255920,3.2078,2637.9,2637.5,0.75817]
[1739456255921,0.00568839,2637.7,2637.5,0.75817]
[1739456256219,0.00568839,2637.7,2637.4,3.2078]
[1739456256719,0.00568839,2637.7,2637.2,0.00568839]
[1739456256914,3.2078,2637.6,2637.2,0.00568839]
[1739456257214,3.96596,2637.6,2637.2,0.00568839]
[1739456257521,3.2078,2637.6,2637.2,0.00568839]
[1739456257814,0.00568839,2637.7,2637.4,4.3942891]
[1739456258317,0.75822,2637.4,2637.2,0.00568839]
[1739456258512,0.75824,2637.3,2637.2,0.00568839]
[1739456258718,3.2078,2637.5,2637.2,0.00568839]
[1739456258916,0.75824,2637.3,2637.2,0.00568839]
[1739456259111,0.75816,2637.6,2637.2,3.97173839]
[1739456259507,0.00568839,2637.7,2637.2,3.21348839]
[1739456259915,0.76381839,2637.7,2637.2,3.21348839]
[1739456260116,0.75816,2637.6,2637.2,3.97172839]
[1739456260318,0.76381839,2637.7,2637.3,0.75823]
[1739456260519,0.00568839,2637.7,2637.2,3.21348839]
[1739456260712,0.75819,2637.5,2637.2,3.97174839]
[1739456260908,0.75822,2637.4,2637.2,3.21348839]
[1739456261114,0.75824,2637.3,2637.2,3.21348839]
[1739456261823,3.2078,2637.6,2637.2,3.21348839]
[1739456262129,3.2078,2638.6,2637.5,3.2078]
[1739456262423,0.75824,2637.3,2637.2,0.00568839]
[1739456262621,5.10292,2638.0,2637.2,0.00568839]
[1739456262822,3.2078,2638.0,2637.2,0.00568839]
[1739456263019,3.2078,2638.4,2637.5,4.3942891]
[1739456263221,0.75813,2637.7,2637.5,6.6262891]
[1739456263417,1.89488,2638.3,2637.5,6.6262891]
[1739456263617,3.2078,2638.4,2637.5,6.6262891]
[1739456264323,5.10265,2638.4,2637.5,6.6262891]
[1739456264524,3.2078,2637.8,2637.5,6.6262891]
[1739456264727,0.75815,2637.6,2637.5,6.6262891]
[1739456264923,0.75815,2637.6,2637.5,4.3942891]
[1739456265124,0.75815,2637.6,2637.2,0.00568839]
[1739456265125,3.2078,2637.8,2637.2,0.00568839]
[1739456265323,0.75824,2637.3,2637.2,0.00568839]
[1739456272228,0.75832,2637.0,2636.9,19.853]
[1739456273419,0.75847,2636.5,2636.4,3.2078]
[1739456274325,4.4293,2637.1,2636.4,3.2078]
[1739456274623,0.75847,2636.5,2636.4,3.2078]
[1739456275022,3.2078,2636.6,2636.2,0.00568839]
[1739456275221,0.75852,2636.3,2636.2,0.00568839]
[1739456275823,3.96632,2636.3,2636.2,0.00568839]
[1739456276018,0.75852,2636.3,2636.2,0.00568839]
[1739456276232,3.2078,2636.6,2636.2,0.00568839]
[1739456276430,0.75852,2636.3,2636.2,0.00568839]
[1739456276631,3.2078,2636.6,2636.2,0.00568839]
[1739456276932,0.75852,2636.4,2636.2,0.00568839]
[1739456277129,5.967,2637.0,2636.2,3.21348839]
[1739456277333,5.967,2637.0,2636.2,0.00568839]
[1739456277534,0.75843,2636.7,2636.2,0.00568839]
[1739456277735,3.2078,2636.8,2636.2,0.00568839]
[1739456278029,3.9662,2636.8,2636.5,0.75845]
[1739456278329,7.6371,2637.1,2636.5,2.192]
[1739456278536,3.96612,2637.1,2636.5,2.192]
[1739456278732,0.00568839,2637.2,2636.5,2.192]
[1739456279031,0.00568839,2637.2,2637.0,0.7583]
[1739456279223,0.00568839,2637.2,2637.1,0.75829]
[1739456279531,0.76394839,2637.2,2637.1,2.19]
[1739456279728,0.75831,2637.1,2636.8,0.75838]
[1739456280031,0.75829,2637.1,2636.7,7.3436691]
[1739456280224,3.21348839,2637.2,2636.7,7.3436691]
[1739456280423,3.21348839,2637.2,2636.7,7.3436891]
[1739456280424,0.75833,2637.0,2636.7,7.3436891]
[1739456280624,0.75838,2636.8,2636.7,4.3942891]
[1739456280925,3.21348839,2637.2,2636.6,2.187]
[1739456281135,0.75838,2636.9,2636.6,2.187]
[1739456281335,0.75841,2636.7,2636.6,2.187]
[1739456281527,3.2078,2636.9,2636.3,9.0546891]
[1739456281830,0.75852,2636.3,2636.2,2.19168839]
[1739456282235,0.75852,2636.3,2636.2,0.00568839]
[1739456282425,3.96632,2636.3,2636.2,0.00568839]
[1739456283335,0.75855,2636.2,2636.1,0.29019446]
[1739456283631,6.42355,2636.2,2636.1,0.29019446]
[1739456283830,11.665,2636.2,2634.6,3.2078]
[1739456284029,0.759,2634.7,2634.3,8.3611591]
[1739456284334,0.75903,2634.6,2634.3,3.2078]
[1739456284540,3.2078,2634.6,2634.2,0.00568839]
[1739456285023,0.75907,2634.5,2634.2,0.00568839]
[1739456285428,3.2078,2634.6,2634.2,0.00568839]
[1739456285634,0.7591,2634.3,2634.2,0.00568839]
[1739456285934,3.21348839,2634.8,2634.2,0.00568839]
[1739456286323,3.21348839,2634.8,2634.3,4.3942891]
[1739456286324,0.00568839,2634.8,2634.3,4.3942891]
[1739456287028,3.21348839,2634.8,2634.2,0.00568839]
[1739456287634,0.7591,2634.3,2634.2,0.00568839]
[1739456289530,3.2078,2634.5,2634.2,0.76480839]
[1739456289730,3.2078,2634.5,2634.2,0.76479839]
[1739456289931,3.2078,2634.5,2634.2,0.00568839]
[1739456290132,0.00568839,2634.8,2634.3,4.3942891]
[1739456290335,0.00568839,2634.8,2634.4,5.3908]
[1739456290631,0.00568839,2634.8,2634.4,2.183]
[1739456290827,0.00568839,2634.8,2634.5,0.75902]
[1739456291038,0.00568839,2634.8,2634.4,2.183]
[1739456291339,0.75898,2634.7,2634.4,5.3908]
[1739456291640,0.00568839,2634.8,2634.5,0.75903]
[1739456291836,0.76464839,2634.8,2634.4,6.14985]
[1739456292135,0.759,2634.7,2634.4,5.3908]
[1739456292341,0.76465839,2634.8,2634.4,5.3908]
[1739456292529,0.76465839,2634.8,2634.4,6.14986]
[1739456292727,0.76465839,2634.8,2634.4,5.3908]
[1739456292728,0.75899,2634.7,2634.4,5.3908]
[1739456292932,0.76466839,2634.8,2634.4,6.14987]
[1739456293134,0.75899,2634.7,2634.4,5.3908]
[1739456293330,0.75904,2634.5,2634.4,2.183]
[1739456293535,0.75902,2634.6,2634.3,8.7925891]
[1739456293732,0.75901,2634.6,2634.3,8.7925891]
[1739456293928,0.00568839,2634.8,2634.3,8.7925891]
[1739456294333,0.00568839,2634.8,2634.7,5.1532691]
[1739456294529,3.2078,2635.8,2634.7,6.5632891]
[1739456294732,3.2078,2636.1,2635.3,3.2078]
[1739456294935,3.2078,2636.1,2635.3,2.169]
[1739456295137,3.2078,2636.1,2635.3,2.9278]
[1739456295332,0.75881,2635.3,2635.2,9.8846]
[1739456295533,0.75881,2635.3,2634.4,7.43226]
[1739456295534,0.7589,2635.0,2634.9,2.168]
[1739456295735,3.2078,2635.2,2635.0,0.00568839]
[1739456295935,0.75887,2635.1,2635.0,0.00568839]
[1739456300142,0.75875,2635.6,2635.0,0.00568839]
[1739456300349,0.75887,2635.1,2635.0,2.16168839]
[1739456300742,0.75887,2635.1,2635.0,0.00568839]
[1739456301438,3.2078,2635.2,2635.0,0.00568839]
[1739456301743,0.75887,2635.1,2635.0,0.00568839]
[1739456304747,10.4594,2635.1,2634.3,19.872]
[1739456304954,0.75907,2634.4,2634.3,19.872]
[1739456307945,0.00568839,2634.6,2634.3,19.872]
[1739456308145,0.00568839,2634.6,2634.5,0.75904]
[1739456308347,0.00568839,2634.6,2634.3,19.872]
[1739456308648,0.75907,2634.4,2634.3,19.872]
[1739456309456,3.21348839,2634.6,2634.3,19.872]
[1739456309656,0.75907,2634.4,2634.3,19.872]
[1739456311958,3.21348839,2634.6,2634.3,19.872]
[1739456312157,0.75907,2634.4,2634.3,19.872]
[1739456312456,0.75907,2634.4,2634.3,20.6311]
[1739456312653,0.00568839,2634.6,2634.5,0.75904]
[1739456313056,0.00568839,2634.6,2634.3,30.6482281]
[1739456313555,0.00568839,2634.6,2634.3,30.6472281]
[1739456313556,0.75907,2634.4,2634.3,30.6472281]
[1739456313963,0.00568839,2634.6,2634.3,30.6472281]
[1739456314261,0.75906,2634.5,2634.3,31.4063181]
[1739456314455,0.00568839,2634.6,2634.5,0.75904]
[1739456315165,0.00568839,2634.6,2634.4,3.2078]
[1739456315360,0.75904,2634.5,2634.4,3.2078]
[1739456315567,0.75907,2634.4,2634.3,30.6402281]
[1739456315861,0.00568839,2634.6,2634.3,30.6402281]
[1739456316255,0.00568839,2634.6,2634.4,3.2078]
[1739456316460,0.75904,2634.5,2634.4,3.2078]
[1739456316853,0.00568839,2634.6,2634.4,3.2078]
[1739456317054,0.00568839,2634.6,2634.5,0.75904]
[1739456317764,0.76469839,2634.6,2634.5,2.117]
[1739456317964,0.00568839,2634.6,2634.5,2.87604]
[1739456318169,0.75886,2635.2,2635.0,0.75889]
[1739456318465,3.2078,2635.3,2634.7,3.2078]
[1739456318663,0.75896,2634.8,2634.7,3.2078]
[1739456318865,1.89711,2635.2,2634.7,3.2078]
[1739456319167,5.10488,2635.3,2634.7,3.2078]
[1739456319364,0.00568839,2635.2,2635.0,3.2078]
[1739456319568,0.00568839,2635.2,2635.1,6.8257981]
[1739456319767,0.00568839,2635.2,2635.1,11.3937981]
[1739456320762,3.2078,2635.9,2635.1,16.6349281]
[1739456321077,3.2078,2635.9,2635.5,3.9569281]
[1739456321363,3.2078,2635.9,2635.6,2.107]
[1739456321364,3.96646,2635.9,2635.6,2.107]
[1739456321568,3.96646,2635.9,2635.6,2.86571]
[1739456321769,3.96646,2635.9,2635.6,2.107]
[1739456321770,3.2078,2635.9,2635.6,2.107]
[1739456322173,0.75872,2635.6,2635.5,0.00568839]
[1739456322373,3.96652,2635.6,2635.5,0.00568839]
[1739456323067,0.75872,2635.6,2635.5,0.00568839]
[1739456323369,3.2078,2636.0,2635.5,0.76442839]
[1739456323573,3.2078,2636.0,2635.5,3.96261649]
[1739456323767,3.2078,2636.0,2635.8,3.9569281]
[1739456323964,3.96642,2636.0,2635.8,3.9569281]
[1739456324263,3.2078,2636.0,2635.8,3.9569281]
[1739456324568,0.75864,2635.9,2635.8,3.9569281]
[1739456324765,0.75868,2635.8,2635.5,6.82735649]
[1739456325369,3.2078,2636.5,2635.5,9.27641649]
[1739456325566,3.2078,2636.5,2635.8,3.9569281]
[1739456325764,3.50480636,2636.9,2636.4,3.9569281]
[1739456325969,3.2078,2637.2,2636.4,7.1647281]
[1739456326264,3.2078,2637.2,2636.5,0.75845]
[1739456326467,3.2078,2637.2,2636.4,7.1647281]
[1739456326666,0.7584,2636.8,2636.4,7.9231981]
[1739456326872,3.2078,2637.1,2636.4,7.1647281]
[1739456327074,3.2078,2637.1,2636.4,7.9232081]
[1739456327075,0.75842,2636.7,2636.4,7.9232081]
[1739456327572,0.75839,2636.8,2636.5,0.75844]
[1739456327774,0.75834,2637.0,2636.6,0.75842]
[1739456327968,0.75837,2636.9,2636.4,13.0248281]
[1739456328169,3.2078,2637.1,2636.4,13.0248281]
[1739456328170,0.75841,2636.7,2636.4,13.0248281]
[1739456328366,3.96627,2636.5,2636.4,5.8601]
[1739456328677,3.2078,2636.8,2636.1,6.0479281]
[1739456329264,3.2078,2636.5,2635.9,10.6999]
[1739456329476,0.75861,2636.0,2635.9,12.7959]
[1739456329677,1.89624,2636.4,2635.6,20.63272]
[1739456329678,0.75868,2635.8,2635.6,23.0818]
[1739456329878,3.2078,2636.2,2635.6,23.0818]
[1739456330171,3.2078,2636.2,2635.6,19.874]
[1739456330370,0.75865,2635.9,2635.6,20.63272]
[1739456330571,3.2078,2636.2,2635.6,19.874]
[1739456330973,0.75863,2636.0,2635.7,0.75868]
[1739456331275,3.2078,2636.2,2635.6,19.874]
[1739456331679,3.2078,2636.2,2635.6,20.63271]
[1739456331880,0.75864,2636.0,2635.6,19.874]
[1739456332075,3.2078,2636.2,2635.6,19.874]
[1739456332381,0.75841,2636.8,2636.1,7.1647281]
[1739456332584,0.75841,2636.8,2636.4,3.9569281]
[1739456332784,3.2078,2636.9,2636.4,3.9569281]
[1739456333079,0.75843,2636.7,2636.4,3.9569281]
[1739456333278,0.75845,2636.6,2636.4,3.9569281]
[1739456333577,0.75852,2636.3,2636.2,7.9582]
[1739456333877,0.75851,2636.4,2636.2,2.092]
[1739456334180,3.2078,2637.0,2636.2,2.092]
[1739456334375,3.2078,2637.0,2636.4,3.9569281]
[1739456334570,0.75845,2636.6,2636.4,3.9569281]
[1739456334879,3.2078,2637.0,2636.4,4.7153981]
[1739456335381,3.2078,2637.0,2636.4,3.9569281]
[1739456335580,0.75833,2637.0,2636.7,0.7584]
[1739456335882,0.29656193,2637.4,2636.9,3.2078]
[1739456336071,0.75827,2637.2,2637.0,3.9569281]
[1739456336270,10.82056767,2637.5,2637.0,3.9569281]
[1739456336481,0.75825,2637.3,2637.0,3.9569281]
[1739456336777,0.75827,2637.2,2637.0,3.9569281]
[1739456336979,0.75823,2637.4,2637.0,4.7152381]
[1739456337282,0.29006767,2637.5,2637.0,3.9569281]
[1739456337476,3.2078,2637.9,2637.2,0.75824]
[1739456337676,3.2078,2637.9,2637.0,4.7152281]
[1739456337980,3.2078,2637.9,2637.0,3.9569281]
[1739456338183,0.75825,2637.3,2637.0,4.7152481]
[1739456338480,0.75822,2637.4,2637.1,0.75828]
[1739456338675,0.75824,2637.3,2637.0,4.7152381]
[1739456338876,3.49612632,2637.9,2637.0,3.9569281]
[1739456339080,0.75828,2637.2,2637.0,3.9569281]
[1739456339275,3.2078,2637.6,2637.0,3.9569281]
[1739456339482,0.75829,2637.1,2637.0,3.9569281]
[1739456340186,3.2078,2637.2,2636.8,0.00568839]
[1739456340488,3.96615,2636.9,2636.8,0.00568839]
[1739456341579,3.96615,2636.9,2636.1,3.2078]
[1739456341580,3.2078,2636.9,2636.1,9.2327281]
[1739456341886,3.2078,2636.9,2636.4,3.9569281]
[1739456342079,10.2049,2637.2,2636.4,7.1647281]
[1739456342273,3.49612632,2637.9,2637.1,3.9569281]
[1739456342476,0.75819,2637.5,2637.2,0.75824]
[1739456342685,3.49612632,2637.9,2637.4,3.9569281]
[1739456342686,0.00568839,2637.6,2637.4,3.9569281]
[1739456342984,0.00568839,2637.6,2637.3,2.071]
[1739456343284,0.00568839,2637.6,2637.2,5.2818]
[1739456343676,0.7582,2637.5,2637.2,5.2818]
[1739456343872,0.00568839,2637.6,2637.2,5.2818]
[1739456344079,0.00568839,2637.6,2637.4,0.7582]
[1739456344277,0.00568839,2637.6,2637.2,5.2818]
[1739456344477,5.10891839,2637.6,2637.1,3.96261649]
[1739456344681,0.75826,2637.2,2637.1,3.96261649]
[1739456344885,0.75826,2637.2,2637.1,0.00568839]
[1739456345486,5.10891839,2637.6,2637.1,3.96261649]
[1739456345676,0.75826,2637.2,2637.1,3.96261649]
[1739456345884,5.10891839,2637.6,2637.1,3.96261649]
[1739456346078,3.21348839,2637.6,2637.1,7.17041649]
[1739456346587,3.97164839,2637.6,2637.4,3.9569281]
[1739456346884,0.00568839,2637.6,2637.4,3.9569281]
[1739456347085,0.00568839,2637.6,2637.5,0.75818]
[1739456347285,0.758,2638.2,2637.4,17.1261881]
[1739456347590,0.75798,2638.2,2638.1,3.9569281]
[1739456347787,3.2078,2638.5,2638.1,3.9569281]
[1739456347986,0.75803,2638.0,2637.9,2.069]
[1739456348194,3.2078,2638.5,2638.1,0.75799]
[1739456348393,3.2078,2638.5,2638.1,3.9569281]
[1739456348394,0.75792,2638.4,2638.1,3.9569281]
[1739456348587,3.2078,2638.5,2638.1,3.9569281]
[1739456349094,12.69487,2638.8,2638.1,3.9569281]
[1739456349095,10.8003,2638.8,2638.1,3.9569281]
[1739456349295,3.2078,2638.9,2638.4,3.9569281]
[1739456349593,3.2078,2638.9,2638.7,3.9569281]
[1739456349797,3.2078,2639.2,2638.7,3.9569281]
[1739456350092,13.7039,2639.7,2639.0,3.9569281]
[1739456350282,3.2078,2639.4,2639.0,3.9569281]
[1739456350484,0.75772,2639.1,2639.0,6.0259281]
[1739456350788,1.89381,2639.8,2639.0,6.0259281]
[1739456350789,3.2078,2640.5,2639.0,9.9828562]
[1739456351094,3.2078,2640.5,2639.8,3.9569281]
[1739456351482,3.2078,2639.9,2639.5,3.9569281]
[1739456351687,0.75757,2639.6,2639.5,2.072]
[1739456351882,3.2078,2639.9,2639.5,2.072]
[1739456352404,3.2078,2640.1,2639.5,7.9956]
[1739456352890,3.2078,2640.1,2639.8,5.14226881]
[1739456353092,10.4961,2640.8,2639.9,3.2078]
[1739456353093,3.2078,2640.7,2639.9,3.2078]
[1739456353400,10.4961,2640.8,2640.2,3.2078]
[1739456354291,3.2078,2641.0,2640.2,3.2078]
[1739456354497,1.89274,2641.3,2640.2,3.2078]
[1739456354498,0.75737,2640.4,2640.2,3.2078]
[1739456354695,3.2078,2640.7,2640.2,3.2078]
[1739456354990,3.2078,2640.8,2640.2,3.2078]
[1739456355290,3.2078,2640.8,2640.0,2.069]
[1739456355796,0.75741,2640.2,2640.0,2.069]
[1739456355987,3.2078,2640.8,2640.0,2.069]
[1739456356489,0.75739,2640.3,2640.0,2.069]
[1739456356695,0.75739,2640.3,2639.9,9.6443]
[1739456356696,0.75746,2640.0,2639.9,9.6443]
[1739456356891,5.10093,2640.8,2639.9,9.6443]
[1739456357092,3.2078,2641.1,2640.3,3.2078]
[1739456357299,3.2078,2641.1,2640.5,0.75731]
[1739456357495,3.2078,2641.1,2640.4,2.057]
[1739456357795,0.75723,2640.8,2640.4,2.057]
[1739456357998,3.2078,2641.1,2640.4,2.81433]
[1739456358208,0.75722,2640.9,2640.4,2.057]
[1739456358495,3.2078,2641.1,2640.4,2.057]
[1739456358697,0.75716,2641.1,2640.7,0.75724]
[1739456358891,3.2078,2641.6,2640.6,7.59254881]
[1739456359091,0.75723,2640.9,2640.6,7.59254881]
[1739456359390,0.75724,2640.8,2640.6,7.59254881]
[1739456359901,3.2078,2641.3,2640.5,0.00568839]
[1739456359902,3.2078,2641.0,2640.5,0.00568839]
[1739456360100,0.75729,2640.6,2640.5,0.00568839]
[1739456360394,3.96509,2640.6,2640.5,0.00568839]
[1739456360600,0.75729,2640.6,2640.5,0.00568839]
[1739456360990,3.2078,2640.7,2640.5,0.00568839]
[1739456361194,0.75729,2640.6,2640.5,0.00568839]
[1739456361396,3.96509,2640.6,2640.5,0.00568839]
[1739456362094,4.6914,2640.8,2640.5,0.00568839]
[1739456362294,4.6914,2640.8,2640.5,0.76298839]
[1739456362600,0.75729,2640.6,2640.5,0.00568839]
[1739456362793,4.6914,2640.8,2640.5,0.00568839]
[1739456363101,0.75729,2640.6,2640.5,0.00568839]
[1739456363293,0.75728,2640.7,2640.5,0.00568839]
[1739456363488,0.75729,2640.6,2640.5,0.00568839]
[1739456363687,3.2078,2640.9,2640.5,0.00568839]
[1739456363888,0.75729,2640.6,2640.5,0.00568839]
[1739456364593,3.96509,2640.6,2640.5,0.00568839]
[1739456367298,3.96509,2640.6,2640.5,8.39e-06]
[1739456369400,9.96509,2640.6,2640.5,8.39e-06]
[1739456369591,9.96509,2640.6,2639.0,48.39254881]
[1739456369592,15.0955,2640.6,2639.0,48.39254881]
[1739456369796,3.2078,2639.7,2639.0,40.8]
[1739456369992,0.75771,2639.2,2639.1,0.75771]
[1739456370196,3.2078,2640.2,2639.1,8.1532986]
[1739456370401,3.2078,2640.2,2639.5,3.2078]
[1739456370709,0.75765,2639.4,2639.3,0.75764]
[1739456370906,0.75755,2639.7,2639.6,0.00568839]
[1739456372604,8.063,2639.7,2638.9,40.8]
[1739456372804,8.063,2639.7,2638.5,22.65688]
[1739456372805,0.75783,2638.7,2638.5,22.65688]
[1739456372992,0.75783,2638.7,2638.5,21.899]
[1739456373193,0.75786,2638.6,2638.5,62.699]
[1739456373607,4.4681,2639.3,2638.5,64.57920264]
[1739456373810,4.4681,2639.3,2639.2,0.75769]
[1739456374008,5.22576,2639.3,2639.0,0.75772]
[1739456374206,11.1248,2639.8,2639.1,3.94320264]
[1739456374403,3.2078,2639.5,2639.1,3.94320264]
[1739456374604,0.75769,2639.2,2639.1,3.94320264]
[1739456374910,3.2078,2639.5,2639.1,3.94320264]
[1739456375100,0.75759,2639.6,2639.2,0.75768]
[1739456375311,0.75765,2639.4,2639.2,3.2078]
[1739456375606,9.0618,2639.8,2639.2,3.2078]
[1739456375907,0.75759,2639.6,2639.2,3.96548]
[1739456376202,3.96533,2639.8,2639.4,4.70081264]
[1739456376509,3.21348839,2640.1,2639.7,3.94320264]
[1739456376708,0.75747,2640.0,2639.7,3.94320264]
[1739456377204,0.00568839,2640.1,2639.7,3.94320264]
[1739456377409,0.76313839,2640.1,2639.7,9.29524264]